[Event "*** Titled Tuesday Blitz"]
[Site "Chess.com"]
[Date "2019.12.03"]
[Round "4"]
[White "PavelChernomordik"]
[Black "DenishevM"]
[Result "1-0"]
[WhiteElo "2455"]
[BlackElo "2606"]
[TimeControl "180+2"]
[EndTime "13:52:19 PST"]
[Termination "PavelChernomordik won by resignation"]

1. e4 {[%clk 0:03:01.9]} 1... c5 {[%clk 0:02:58.2]} 2. Nc3 {[%clk 0:03:00.4]}
2... e6 {[%clk 0:02:57.9]} 3. f4 {[%clk 0:03:00.6]} 3... d5 {[%clk 0:02:59]} 4.
Nf3 {[%clk 0:03:00.3]} 4... Nc6 {[%clk 0:02:57.1]} 5. Bb5 {[%clk 0:03:00.1]}
5... d4 {[%clk 0:02:54.9]} 6. Bxc6+ {[%clk 0:02:59.8]} 6... bxc6 {[%clk
0:02:56.8]} 7. Ne2 {[%clk 0:03:00.6]} 7... d3 {[%clk 0:02:39.8]} 8. cxd3 {[%clk
0:02:59.8]} 8... Qxd3 {[%clk 0:02:41.7]} 9. Nc3 {[%clk 0:03:00.3]} 9... Nf6
{[%clk 0:02:37.9]} 10. Ne5 {[%clk 0:02:57.3]} 10... Qd6 {[%clk 0:02:17.6]} 11.
Qa4 {[%clk 0:02:54.3]} 11... Bd7 {[%clk 0:02:12.1]} 12. d3 {[%clk 0:02:44.3]}
12... Be7 {[%clk 0:02:08.9]} 13. Be3 {[%clk 0:02:43.8]} 13... O-O {[%clk
0:02:06.2]} 14. Qa5 {[%clk 0:02:35.6]} 14... Rab8 {[%clk 0:01:55.1]} 15. b3
{[%clk 0:02:30.3]} 15... h5 {[%clk 0:01:24.7]} 16. h3 {[%clk 0:02:27.8]} 16...
h4 {[%clk 0:01:00.1]} 17. O-O-O {[%clk 0:02:21.5]} 17... Rb4 {[%clk 0:00:53]}
18. Nc4 {[%clk 0:02:16.3]} 18... Qb8 {[%clk 0:00:53.7]} 19. Bxc5 {[%clk
0:02:13.1]} 19... Rb5 {[%clk 0:00:47]} 20. Nxb5 {[%clk 0:02:08.7]} 20... Bxc5
{[%clk 0:00:47.5]} 21. Nc3 {[%clk 0:02:01.8]} 21... Bb4 {[%clk 0:00:47.2]} 22.
Qe5 {[%clk 0:01:56.5]} 22... Bxc3 {[%clk 0:00:25.6]} 23. Qxc3 {[%clk 0:01:55.7]}
23... Qxf4+ {[%clk 0:00:27.5]} 24. Kb1 {[%clk 0:01:50.9]} 24... c5 {[%clk
0:00:27.2]} 25. Qe5 {[%clk 0:01:43.7]} 25... Qh6 {[%clk 0:00:22.8]} 26. Qxc5
{[%clk 0:01:38.6]} 26... Rc8 {[%clk 0:00:21.1]} 27. Qxa7 {[%clk 0:01:38.6]}
27... Bb5 {[%clk 0:00:21.2]} 28. Rhf1 {[%clk 0:01:35]} 28... Bxc4 {[%clk
0:00:20.2]} 29. dxc4 {[%clk 0:01:31]} 29... Nxe4 {[%clk 0:00:19.6]} 30. Qxf7+
{[%clk 0:01:30.5]} 30... Kh8 {[%clk 0:00:21.1]} 31. Qf4 {[%clk 0:01:23.3]} 31...
Nc3+ {[%clk 0:00:19.4]} 32. Kc2 {[%clk 0:01:22.4]} 32... Qxf4 {[%clk 0:00:15.1]}
33. Rxf4 {[%clk 0:01:20]} 33... Nxd1 {[%clk 0:00:17]} 34. Rxh4+ {[%clk
0:01:20.4]} 34... Kg8 {[%clk 0:00:12.4]} 35. Kxd1 {[%clk 0:01:22.3]} 35... Ra8
{[%clk 0:00:13.2]} 36. a4 {[%clk 0:01:21.3]} 36... Rb8 {[%clk 0:00:14.6]} 37.
Kc2 {[%clk 0:01:21.2]} 37... Kf7 {[%clk 0:00:16.5]} 38. c5 {[%clk 0:01:21.2]}
38... e5 {[%clk 0:00:11.6]} 39. Rc4 {[%clk 0:01:21.1]} 39... Ke6 {[%clk
0:00:13.5]} 40. c6 {[%clk 0:01:21.5]} 40... Kd6 {[%clk 0:00:15.4]} 41. c7 {[%clk
0:01:20.7]} 41... Rc8 {[%clk 0:00:17.3]} 42. Kd3 {[%clk 0:01:21.3]} 1-0

[Event "*** Titled Tuesday Blitz"]
[Site "Chess.com"]
[Date "2019.12.03"]
[Round "4"]
[White "scrapnel"]
[Black "MITerryble"]
[Result "0-1"]
[WhiteElo "2701"]
[BlackElo "2866"]
[TimeControl "180+2"]
[EndTime "13:52:24 PST"]
[Termination "MITerryble won by resignation"]

1. Nf3 {[%clk 0:03:01.9]} 1... Nf6 {[%clk 0:03:00.2]} 2. c4 {[%clk 0:03:02.7]}
2... b6 {[%clk 0:02:59.3]} 3. g3 {[%clk 0:03:01.7]} 3... Bb7 {[%clk 0:03:00.2]}
4. Bg2 {[%clk 0:03:03.2]} 4... g6 {[%clk 0:03:01.4]} 5. O-O {[%clk 0:03:03.6]}
5... Bg7 {[%clk 0:03:02.6]} 6. d4 {[%clk 0:03:04.4]} 6... O-O {[%clk 0:03:03.7]}
7. Qc2 {[%clk 0:03:04.3]} 7... e6 {[%clk 0:03:02.6]} 8. Nc3 {[%clk 0:03:02]}
8... d5 {[%clk 0:03:03.5]} 9. cxd5 {[%clk 0:03:01.5]} 9... exd5 {[%clk
0:03:00.6]} 10. Bf4 {[%clk 0:02:51.6]} 10... c6 {[%clk 0:02:56.8]} 11. Rad1
{[%clk 0:02:42.9]} 11... Nbd7 {[%clk 0:02:50.4]} 12. Rfe1 {[%clk 0:02:38.2]}
12... Re8 {[%clk 0:02:50.5]} 13. Ne5 {[%clk 0:02:31.5]} 13... Nh5 {[%clk
0:02:48.1]} 14. Nd3 {[%clk 0:02:08.9]} 14... Bxd4 {[%clk 0:01:58.2]} 15. e4
{[%clk 0:02:09.6]} 15... Nxf4 {[%clk 0:01:42.7]} 16. Nxf4 {[%clk 0:02:03.2]}
16... Be5 {[%clk 0:00:37.9]} 17. exd5 {[%clk 0:01:59.2]} 17... c5 {[%clk
0:00:39.3]} 18. Nd3 {[%clk 0:01:05]} 18... Bg7 {[%clk 0:00:40.1]} 19. Rxe8+
{[%clk 0:00:44.3]} 19... Qxe8 {[%clk 0:00:42]} 20. Nb5 {[%clk 0:00:45]} 20...
Qd8 {[%clk 0:00:40.7]} 21. Nd6 {[%clk 0:00:37.9]} 21... Ba6 {[%clk 0:00:41.6]}
22. Re1 {[%clk 0:00:28]} 22... Bxd3 {[%clk 0:00:41]} 23. Qxd3 {[%clk 0:00:21.4]}
23... Ne5 {[%clk 0:00:42.3]} 24. Rxe5 {[%clk 0:00:12.9]} 24... Bxe5 {[%clk
0:00:44.2]} 25. Nc4 {[%clk 0:00:13.8]} 25... Bd4 {[%clk 0:00:45.6]} 26. d6
{[%clk 0:00:14.5]} 26... Rb8 {[%clk 0:00:46.1]} 27. a4 {[%clk 0:00:11.9]} 27...
Qf6 {[%clk 0:00:47.1]} 28. Qe2 {[%clk 0:00:10.4]} 28... Rd8 {[%clk 0:00:47.1]}
29. Bc6 {[%clk 0:00:08.8]} 29... Qe6 {[%clk 0:00:46.4]} 30. Qf3 {[%clk
0:00:06.8]} 30... Qxc4 {[%clk 0:00:38.5]} 31. Bd5 {[%clk 0:00:08]} 31... Qc1+
{[%clk 0:00:39.6]} 32. Kg2 {[%clk 0:00:09.3]} 32... Rf8 {[%clk 0:00:41.2]} 33.
d7 {[%clk 0:00:09.5]} 33... Qg5 {[%clk 0:00:42]} 34. Bc4 {[%clk 0:00:07.7]}
34... Qe7 {[%clk 0:00:41.9]} 35. Qd5 {[%clk 0:00:08.2]} 35... Rd8 {[%clk
0:00:42.7]} 0-1

[Event "*** Titled Tuesday Blitz"]
[Site "Chess.com"]
[Date "2019.12.03"]
[Round "4"]
[White "AryanTari"]
[Black "Astaneh"]
[Result "1-0"]
[WhiteElo "2849"]
[BlackElo "2558"]
[TimeControl "180+2"]
[EndTime "13:52:30 PST"]
[Termination "AryanTari won on time"]

1. Nf3 {[%clk 0:03:01.9]} 1... Nf6 {[%clk 0:02:57.7]} 2. c4 {[%clk 0:03:01.5]}
2... g6 {[%clk 0:02:54.8]} 3. g3 {[%clk 0:03:01.4]} 3... Bg7 {[%clk 0:02:55]} 4.
Bg2 {[%clk 0:03:03]} 4... c6 {[%clk 0:02:56.4]} 5. O-O {[%clk 0:03:00.9]} 5...
O-O {[%clk 0:02:56.2]} 6. b3 {[%clk 0:02:51.6]} 6... d6 {[%clk 0:02:51.5]} 7. d4
{[%clk 0:02:51.2]} 7... e5 {[%clk 0:02:51.6]} 8. dxe5 {[%clk 0:02:51.7]} 8...
Ng4 {[%clk 0:02:49.8]} 9. Bb2 {[%clk 0:02:51]} 9... dxe5 {[%clk 0:02:47.8]} 10.
h3 {[%clk 0:02:14.1]} 10... e4 {[%clk 0:02:00.3]} 11. Bxg7 {[%clk 0:02:13.4]}
11... Kxg7 {[%clk 0:01:39.1]} 12. hxg4 {[%clk 0:01:51.2]} 12... exf3 {[%clk
0:01:39.3]} 13. Bxf3 {[%clk 0:01:33.6]} 13... Nd7 {[%clk 0:01:27.5]} 14. Qd4+
{[%clk 0:01:26.8]} 14... Qf6 {[%clk 0:01:27.7]} 15. Qxf6+ {[%clk 0:01:25.7]}
15... Nxf6 {[%clk 0:01:24.7]} 16. g5 {[%clk 0:01:25.6]} 16... Ng4 {[%clk
0:01:24.7]} 17. Nc3 {[%clk 0:01:21.8]} 17... Ne5 {[%clk 0:01:24.8]} 18. Be4
{[%clk 0:01:19.7]} 18... Bh3 {[%clk 0:01:18.2]} 19. Rfd1 {[%clk 0:01:20.3]}
19... Rad8 {[%clk 0:01:19.4]} 20. f3 {[%clk 0:01:11.9]} 20... Bc8 {[%clk
0:01:10.3]} 21. Kf2 {[%clk 0:01:11.6]} 21... Nd7 {[%clk 0:01:04.5]} 22. Bc2
{[%clk 0:01:08.8]} 22... Nc5 {[%clk 0:01:04.9]} 23. e3 {[%clk 0:01:00]} 23...
Bf5 {[%clk 0:00:46.5]} 24. Bxf5 {[%clk 0:00:40.2]} 24... gxf5 {[%clk 0:00:48.4]}
25. f4 {[%clk 0:00:41.5]} 25... h6 {[%clk 0:00:40.5]} 26. gxh6+ {[%clk
0:00:41.8]} 26... Kxh6 {[%clk 0:00:42.4]} 27. Ke2 {[%clk 0:00:43.4]} 27... Kh5
{[%clk 0:00:32.6]} 28. b4 {[%clk 0:00:43.7]} 28... Ne4 {[%clk 0:00:30.1]} 29.
Nxe4 {[%clk 0:00:38.3]} 29... fxe4 {[%clk 0:00:30.7]} 30. Rh1+ {[%clk
0:00:39.6]} 30... Kg4 {[%clk 0:00:26.1]} 31. Rh4+ {[%clk 0:00:40.3]} 31... Kxg3
{[%clk 0:00:23.4]} 32. Rh5 {[%clk 0:00:40.5]} 1-0

[Event "*** Titled Tuesday Blitz"]
[Site "Chess.com"]
[Date "2019.12.03"]
[Round "4"]
[White "kesarev"]
[Black "Kosche007"]
[Result "1-0"]
[WhiteElo "2495"]
[BlackElo "2314"]
[TimeControl "180+2"]
[EndTime "13:52:34 PST"]
[Termination "kesarev won by resignation"]

1. Nf3 {[%clk 0:03:01.9]} 1... Nf6 {[%clk 0:03:00.5]} 2. c4 {[%clk 0:03:02.7]}
2... g6 {[%clk 0:03:01.7]} 3. Nc3 {[%clk 0:03:03.6]} 3... Bg7 {[%clk 0:03:03.2]}
4. e4 {[%clk 0:03:04.9]} 4... d6 {[%clk 0:03:04.5]} 5. d4 {[%clk 0:03:06.4]}
5... O-O {[%clk 0:03:06.1]} 6. h3 {[%clk 0:03:07.6]} 6... e5 {[%clk 0:03:07]} 7.
d5 {[%clk 0:03:08.6]} 7... Na6 {[%clk 0:03:07.9]} 8. Bg5 {[%clk 0:03:08.4]} 8...
h6 {[%clk 0:03:06.7]} 9. Be3 {[%clk 0:03:09.1]} 9... Nc5 {[%clk 0:02:58.5]} 10.
Nd2 {[%clk 0:03:08.4]} 10... a5 {[%clk 0:02:57.4]} 11. g4 {[%clk 0:03:08.6]}
11... Nh7 {[%clk 0:02:55.1]} 12. Rg1 {[%clk 0:03:07.9]} 12... Kh8 {[%clk
0:02:55.5]} 13. Qf3 {[%clk 0:02:58.6]} 13... Bd7 {[%clk 0:02:40.9]} 14. Be2
{[%clk 0:02:41.3]} 14... Qe7 {[%clk 0:02:38.3]} 15. Qg2 {[%clk 0:02:39.9]} 15...
Rg8 {[%clk 0:02:26.4]} 16. h4 {[%clk 0:02:19]} 16... Raf8 {[%clk 0:02:21.1]} 17.
O-O-O {[%clk 0:02:10.8]} 17... a4 {[%clk 0:02:17.1]} 18. h5 {[%clk 0:02:01.6]}
18... g5 {[%clk 0:02:17]} 19. b4 {[%clk 0:01:58.8]} 19... axb3 {[%clk
0:02:17.2]} 20. axb3 {[%clk 0:02:00.1]} 20... Na6 {[%clk 0:02:16.5]} 21. Kb2
{[%clk 0:01:58.7]} 21... Ra8 {[%clk 0:02:15.4]} 22. Ra1 {[%clk 0:01:58.9]} 22...
Nb4 {[%clk 0:02:16.2]} 23. f3 {[%clk 0:01:45.1]} 23... Rgb8 {[%clk 0:02:13.6]}
24. Qh1 {[%clk 0:01:45.2]} 24... Bf8 {[%clk 0:02:09.3]} 25. Rxa8 {[%clk
0:01:44.9]} 25... Rxa8 {[%clk 0:02:09.8]} 26. Ra1 {[%clk 0:01:46.6]} 26... Qd8
{[%clk 0:02:10]} 27. Qb1 {[%clk 0:01:32.3]} 27... Be7 {[%clk 0:02:09.8]} 28. Na2
{[%clk 0:01:33.2]} 28... Nxa2 {[%clk 0:02:05.3]} 29. Rxa2 {[%clk 0:01:34.1]}
29... c5 {[%clk 0:01:52.7]} 30. dxc6 {[%clk 0:01:29.8]} 30... bxc6 {[%clk
0:01:41.4]} 31. Qa1 {[%clk 0:01:27.8]} 31... Rxa2+ {[%clk 0:01:41.3]} 32. Qxa2
{[%clk 0:01:29.7]} 32... Qb8 {[%clk 0:01:41]} 33. Nb1 {[%clk 0:01:23.3]} 33...
Nf6 {[%clk 0:01:40.8]} 34. Nc3 {[%clk 0:01:19.4]} 34... Qb7 {[%clk 0:01:35.5]}
35. Qa7 {[%clk 0:01:18.3]} 35... Qxa7 {[%clk 0:01:30]} 36. Bxa7 {[%clk 0:01:19]}
36... Kg7 {[%clk 0:01:30]} 37. b4 {[%clk 0:01:15.1]} 37... Kf8 {[%clk
0:01:13.3]} 38. b5 {[%clk 0:01:12.1]} 38... Ke8 {[%clk 0:01:04.6]} 39. b6 {[%clk
0:01:00]} 39... Bc8 {[%clk 0:01:05.5]} 40. c5 {[%clk 0:01:00.7]} 40... Kd7
{[%clk 0:00:59.6]} 41. Bc4 {[%clk 0:00:51.3]} 41... d5 {[%clk 0:00:40.1]} 42.
exd5 {[%clk 0:00:50.1]} 1-0

[Event "*** Titled Tuesday Blitz"]
[Site "Chess.com"]
[Date "2019.12.03"]
[Round "4"]
[White "BvsN"]
[Black "CaptainCasanova"]
[Result "0-1"]
[WhiteElo "2379"]
[BlackElo "2681"]
[TimeControl "180+2"]
[EndTime "13:52:36 PST"]
[Termination "CaptainCasanova won by resignation"]

1. d4 {[%clk 0:03:01.9]} 1... Nf6 {[%clk 0:03:00.6]} 2. c4 {[%clk 0:03:02.8]}
2... g6 {[%clk 0:02:52.9]} 3. Nc3 {[%clk 0:03:03.8]} 3... Bg7 {[%clk 0:02:54.3]}
4. e4 {[%clk 0:03:05.3]} 4... d6 {[%clk 0:02:55.6]} 5. Nge2 {[%clk 0:03:06.8]}
5... O-O {[%clk 0:02:57.2]} 6. f3 {[%clk 0:03:08.3]} 6... b6 {[%clk 0:02:54.8]}
7. Be3 {[%clk 0:03:08.1]} 7... Ba6 {[%clk 0:02:55.7]} 8. Nf4 {[%clk 0:02:59.1]}
8... c5 {[%clk 0:02:54.9]} 9. d5 {[%clk 0:02:58.7]} 9... Nbd7 {[%clk 0:02:53]}
10. Be2 {[%clk 0:02:57.4]} 10... Ne5 {[%clk 0:02:53.5]} 11. b3 {[%clk
0:02:50.4]} 11... Qd7 {[%clk 0:02:54.1]} 12. Rc1 {[%clk 0:02:51.2]} 12... e6
{[%clk 0:02:48.9]} 13. O-O {[%clk 0:02:41.1]} 13... exd5 {[%clk 0:02:48.7]} 14.
Nfxd5 {[%clk 0:02:36.9]} 14... Nxd5 {[%clk 0:02:48.2]} 15. Nxd5 {[%clk
0:02:35.4]} 15... f5 {[%clk 0:02:48.4]} 16. exf5 {[%clk 0:02:22.7]} 16... gxf5
{[%clk 0:02:47.4]} 17. Qd2 {[%clk 0:02:15.7]} 17... Nc6 {[%clk 0:02:27]} 18.
Rcd1 {[%clk 0:02:04.5]} 18... Nd4 {[%clk 0:02:27.7]} 19. Bd3 {[%clk 0:02:03.7]}
19... Rae8 {[%clk 0:02:26.6]} 20. Bf2 {[%clk 0:02:00.9]} 20... Qf7 {[%clk
0:02:24.8]} 21. Ne3 {[%clk 0:01:54.2]} 21... Bb7 {[%clk 0:02:24.3]} 22. f4
{[%clk 0:01:30.7]} 22... Qg6 {[%clk 0:02:21.5]} 23. Bg3 {[%clk 0:01:27.4]} 23...
h5 {[%clk 0:02:18.9]} 24. Nd5 {[%clk 0:01:00]} 24... Qg4 {[%clk 0:02:05.5]} 25.
Qf2 {[%clk 0:00:43.3]} 25... Nxb3 {[%clk 0:01:39.8]} 26. Kh1 {[%clk 0:00:30]}
26... Nd4 {[%clk 0:01:38.7]} 27. h3 {[%clk 0:00:22.8]} 27... Qg6 {[%clk
0:01:38.6]} 28. Bh4 {[%clk 0:00:22.2]} 28... Bxd5 {[%clk 0:01:36.8]} 29. cxd5
{[%clk 0:00:22.6]} 29... Bf6 {[%clk 0:01:38.4]} 30. Bxf6 {[%clk 0:00:16.4]}
30... Qxf6 {[%clk 0:01:39.3]} 31. g4 {[%clk 0:00:14]} 31... fxg4 {[%clk
0:01:37.2]} 32. hxg4 {[%clk 0:00:15.1]} 32... hxg4 {[%clk 0:01:38.4]} 33. Qg3
{[%clk 0:00:11.1]} 33... Qh6+ {[%clk 0:01:34.6]} 34. Kg1 {[%clk 0:00:10.1]}
34... Kh8 {[%clk 0:01:22.3]} 35. Rd2 {[%clk 0:00:08.3]} 35... Nf5 {[%clk
0:00:54.6]} 36. Qg2 {[%clk 0:00:03.7]} 36... Ne3 {[%clk 0:00:51.6]} 37. Qg3
{[%clk 0:00:02.9]} 37... Nxf1 {[%clk 0:00:51.7]} 38. Kxf1 {[%clk 0:00:03.4]}
38... Qxf4+ {[%clk 0:00:52.1]} 39. Qxf4 {[%clk 0:00:04.1]} 39... Rxf4+ {[%clk
0:00:54]} 0-1

[Event "*** Titled Tuesday Blitz"]
[Site "Chess.com"]
[Date "2019.12.03"]
[Round "4"]
[White "MasterLeif"]
[Black "Kawhi_Leonard2"]
[Result "1-0"]
[WhiteElo "2452"]
[BlackElo "2277"]
[TimeControl "180+2"]
[EndTime "13:52:37 PST"]
[Termination "MasterLeif won by resignation"]

1. d4 {[%clk 0:03:01.9]} 1... Nf6 {[%clk 0:03:00.3]} 2. Bf4 {[%clk 0:03:03.2]}
2... e6 {[%clk 0:03:01]} 3. e3 {[%clk 0:03:04.5]} 3... d5 {[%clk 0:03:02.2]} 4.
Nf3 {[%clk 0:03:05.9]} 4... Bd6 {[%clk 0:03:03.6]} 5. Bd3 {[%clk 0:03:06.5]}
5... O-O {[%clk 0:03:04.6]} 6. O-O {[%clk 0:03:07.3]} 6... c5 {[%clk 0:03:05.8]}
7. c3 {[%clk 0:03:08.1]} 7... Nc6 {[%clk 0:03:04.4]} 8. Nbd2 {[%clk 0:03:07.9]}
8... b6 {[%clk 0:03:05.3]} 9. Qe2 {[%clk 0:03:04.8]} 9... Bb7 {[%clk 0:03:06.3]}
10. h3 {[%clk 0:03:00.9]} 10... Re8 {[%clk 0:03:05.3]} 11. Ne5 {[%clk
0:02:59.8]} 11... Qc7 {[%clk 0:03:06.1]} 12. Ndf3 {[%clk 0:02:59.9]} 12... Ne4
{[%clk 0:03:03.2]} 13. Rad1 {[%clk 0:02:46.6]} 13... f6 {[%clk 0:02:59.2]} 14.
Nxc6 {[%clk 0:02:47.9]} 14... Bxf4 {[%clk 0:02:55.7]} 15. exf4 {[%clk
0:02:49.8]} 15... Bxc6 {[%clk 0:02:56.7]} 16. dxc5 {[%clk 0:02:31.6]} 16... Qxf4
{[%clk 0:02:51.9]} 17. Bxe4 {[%clk 0:02:24.5]} 17... Qxe4 {[%clk 0:02:23.8]} 18.
Qxe4 {[%clk 0:02:20.6]} 18... dxe4 {[%clk 0:02:24.7]} 19. Nd4 {[%clk 0:02:21.5]}
19... Bd5 {[%clk 0:02:25.9]} 20. cxb6 {[%clk 0:02:05.8]} 20... axb6 {[%clk
0:02:24.8]} 21. a3 {[%clk 0:02:07.3]} 21... f5 {[%clk 0:02:07.5]} 22. Rd2 {[%clk
0:01:59.9]} 22... g6 {[%clk 0:02:06.8]} 23. Rfd1 {[%clk 0:01:55.5]} 23... Kf7
{[%clk 0:02:07.1]} 24. Nb5 {[%clk 0:01:54.9]} 24... Re7 {[%clk 0:01:58.7]} 25.
c4 {[%clk 0:01:51.8]} 25... Bc6 {[%clk 0:01:56.3]} 26. Nd4 {[%clk 0:01:51.3]}
26... Rc8 {[%clk 0:01:50.7]} 27. b4 {[%clk 0:01:41.2]} 27... e5 {[%clk
0:01:48.2]} 28. Nxc6 {[%clk 0:01:36]} 28... Rxc6 {[%clk 0:01:49]} 29. c5 {[%clk
0:01:18.8]} 29... bxc5 {[%clk 0:01:47]} 30. b5 {[%clk 0:01:20.3]} 30... Rc8
{[%clk 0:01:23.7]} 31. b6 {[%clk 0:00:57.4]} 31... c4 {[%clk 0:01:24.6]} 32. a4
{[%clk 0:00:48.8]} 32... c3 {[%clk 0:01:25.3]} 33. Rc2 {[%clk 0:00:47.5]} 33...
Rc5 {[%clk 0:01:14.1]} 34. Ra1 {[%clk 0:00:36.2]} 34... Ke6 {[%clk 0:00:13.6]}
35. a5 {[%clk 0:00:35.5]} 35... Rb7 {[%clk 0:00:12.1]} 36. a6 {[%clk 0:00:33.7]}
36... Rxb6 {[%clk 0:00:12.4]} 37. a7 {[%clk 0:00:35.5]} 37... Rc8 {[%clk
0:00:11.2]} 38. a8=Q {[%clk 0:00:36.3]} 38... Rxa8 {[%clk 0:00:12.4]} 39. Rxa8
{[%clk 0:00:37.1]} 1-0

[Event "*** Titled Tuesday Blitz"]
[Site "Chess.com"]
[Date "2019.12.03"]
[Round "4"]
[White "jmduque"]
[Black "Laico"]
[Result "0-1"]
[WhiteElo "2472"]
[BlackElo "2339"]
[TimeControl "180+2"]
[EndTime "13:52:40 PST"]
[Termination "Laico won on time"]

1. Nf3 {[%clk 0:02:58.5]} 1... e6 {[%clk 0:03:00]} 2. c4 {[%clk 0:02:58.7]} 2...
f5 {[%clk 0:02:58.8]} 3. g3 {[%clk 0:02:58.3]} 3... b6 {[%clk 0:03:00.1]} 4. Bg2
{[%clk 0:02:57.3]} 4... Bb7 {[%clk 0:03:01.6]} 5. O-O {[%clk 0:02:57.8]} 5...
Nf6 {[%clk 0:03:03.2]} 6. Nc3 {[%clk 0:02:58.4]} 6... Bb4 {[%clk 0:03:03.4]} 7.
Qc2 {[%clk 0:02:56.9]} 7... O-O {[%clk 0:03:04.3]} 8. a3 {[%clk 0:02:56.3]} 8...
Bxc3 {[%clk 0:03:05.1]} 9. Qxc3 {[%clk 0:02:57.3]} 9... Qe8 {[%clk 0:03:06.5]}
10. b4 {[%clk 0:02:57.6]} 10... d6 {[%clk 0:03:00.2]} 11. Bb2 {[%clk 0:02:56]}
11... Nbd7 {[%clk 0:02:57.9]} 12. Rfe1 {[%clk 0:02:48.1]} 12... Qh5 {[%clk
0:02:41]} 13. d3 {[%clk 0:02:38.6]} 13... e5 {[%clk 0:02:37.7]} 14. d4 {[%clk
0:02:23.4]} 14... e4 {[%clk 0:02:11.1]} 15. Nh4 {[%clk 0:02:22.5]} 15... Rae8
{[%clk 0:01:57.1]} 16. d5 {[%clk 0:02:18.5]} 16... Ne5 {[%clk 0:01:50.8]} 17.
Rad1 {[%clk 0:02:11.8]} 17... Bc8 {[%clk 0:01:39.5]} 18. c5 {[%clk 0:02:09.5]}
18... g5 {[%clk 0:01:35.7]} 19. f4 {[%clk 0:02:01.1]} 19... gxf4 {[%clk
0:01:04.8]} 20. gxf4 {[%clk 0:01:56.4]} 20... Qxh4 {[%clk 0:01:03.5]} 21. fxe5
{[%clk 0:01:57]} 21... Ng4 {[%clk 0:00:42]} 22. h3 {[%clk 0:01:44.8]} 22... Nxe5
{[%clk 0:00:41.2]} 23. Kh1 {[%clk 0:01:44.5]} 23... f4 {[%clk 0:00:35.2]} 24.
Rg1 {[%clk 0:01:41]} 24... Kf7 {[%clk 0:00:35.1]} 25. Bxe4 {[%clk 0:01:37.9]}
25... Bxh3 {[%clk 0:00:34.2]} 26. Rg5 {[%clk 0:00:59.2]} 26... Bd7+ {[%clk
0:00:17]} 27. Kg1 {[%clk 0:00:56.8]} 27... Qxg5+ {[%clk 0:00:18.2]} 28. Bg2
{[%clk 0:00:57.3]} 28... Rg8 {[%clk 0:00:18.3]} 0-1

[Event "*** Titled Tuesday Blitz"]
[Site "Chess.com"]
[Date "2019.12.03"]
[Round "4"]
[White "Misticpikachu"]
[Black "Egorov_Pavel"]
[Result "0-1"]
[WhiteElo "2283"]
[BlackElo "2375"]
[TimeControl "180+2"]
[EndTime "13:52:47 PST"]
[Termination "Egorov_Pavel won on time"]

1. c4 {[%clk 0:03:01.9]} 1... Nf6 {[%clk 0:03:01]} 2. Nc3 {[%clk 0:03:01.5]}
2... d5 {[%clk 0:03:02.1]} 3. cxd5 {[%clk 0:03:01]} 3... Nxd5 {[%clk 0:03:04]}
4. g3 {[%clk 0:03:02.1]} 4... g6 {[%clk 0:03:04.8]} 5. Bg2 {[%clk 0:03:02.5]}
5... Nb6 {[%clk 0:03:06.3]} 6. Nf3 {[%clk 0:03:03.4]} 6... Bg7 {[%clk
0:03:07.8]} 7. O-O {[%clk 0:03:04.9]} 7... O-O {[%clk 0:03:09.4]} 8. b3 {[%clk
0:02:47.9]} 8... a5 {[%clk 0:03:07.2]} 9. Bb2 {[%clk 0:02:36.7]} 9... Nc6 {[%clk
0:03:08.1]} 10. d3 {[%clk 0:02:21.4]} 10... e5 {[%clk 0:03:01]} 11. Rc1 {[%clk
0:02:03.7]} 11... Nd4 {[%clk 0:03:01.5]} 12. Nxd4 {[%clk 0:02:04.1]} 12... exd4
{[%clk 0:03:03.4]} 13. Ne4 {[%clk 0:01:57]} 13... Nd5 {[%clk 0:02:54.9]} 14. Qd2
{[%clk 0:01:52.4]} 14... a4 {[%clk 0:02:53.2]} 15. Nc5 {[%clk 0:01:51.4]} 15...
axb3 {[%clk 0:02:45.9]} 16. axb3 {[%clk 0:01:51.8]} 16... Nc3 {[%clk 0:02:47.2]}
17. Na4 {[%clk 0:01:43.1]} 17... Nxa4 {[%clk 0:02:42.8]} 18. bxa4 {[%clk
0:01:45]} 18... Rxa4 {[%clk 0:02:42.5]} 19. Qc2 {[%clk 0:01:45.4]} 19... Ra2
{[%clk 0:02:39.9]} 20. Qb3 {[%clk 0:01:36]} 20... Be6 {[%clk 0:02:40.3]} 21.
Qxb7 {[%clk 0:01:35]} 21... Qb8 {[%clk 0:02:12.2]} 22. Ba1 {[%clk 0:01:01.7]}
22... Qxb7 {[%clk 0:02:03.8]} 23. Bxb7 {[%clk 0:01:01.6]} 23... Rxe2 {[%clk
0:02:05]} 24. Rxc7 {[%clk 0:01:00]} 24... Bf5 {[%clk 0:02:06.5]} 25. Rd1 {[%clk
0:00:43.1]} 25... Bxd3 {[%clk 0:02:03.8]} 26. Bf3 {[%clk 0:00:27.3]} 26... Ra2
{[%clk 0:01:58.5]} 27. Rxd3 {[%clk 0:00:26.6]} 27... Rxa1+ {[%clk 0:01:59.1]}
28. Kg2 {[%clk 0:00:28.5]} 28... Ra5 {[%clk 0:01:45.5]} 29. Rb3 {[%clk
0:00:23.7]} 29... Rf5 {[%clk 0:01:38.3]} 30. Rbb7 {[%clk 0:00:23.2]} 30... h5
{[%clk 0:01:32]} 31. Rd7 {[%clk 0:00:22.6]} 31... Rc8 {[%clk 0:01:25.3]} 32. Bd5
{[%clk 0:00:22.6]} 32... Rc2 {[%clk 0:01:12.2]} 33. Bxf7+ {[%clk 0:00:08.2]}
33... Kh8 {[%clk 0:01:13.2]} 34. Bxg6 {[%clk 0:00:08]} 34... Rfxf2+ {[%clk
0:01:14.5]} 35. Kg1 {[%clk 0:00:08.8]} 35... Rg2+ {[%clk 0:01:12.1]} 36. Kf1
{[%clk 0:00:10.1]} 36... Rcf2+ {[%clk 0:01:11.4]} 37. Ke1 {[%clk 0:00:11.3]}
37... Re2+ {[%clk 0:01:07.6]} 38. Kd1 {[%clk 0:00:11]} 38... Ref2 {[%clk
0:00:57.8]} 39. Rb8+ {[%clk 0:00:04.2]} 39... Bf8 {[%clk 0:00:58.9]} 40. Bd3
{[%clk 0:00:03.4]} 40... Rg1+ {[%clk 0:00:55.9]} 0-1